bitfinex-derivatives/quotes_BTCF0:USTF0_20251220
["timestamp","ask_amount","ask_price","bid_price","bid_amount"]
[1766274221615,0.17573803,88350.0,88334.0,0.02832]
[1766274221616,0.02461744,88345.0,88334.0,0.02832]
[1766274221820,0.17573803,88350.0,88334.0,0.02832]
[1766274222022,0.02461741,88349.0,88334.0,0.02832]
[1766274222218,0.02461741,88348.0,88334.0,0.02832]
[1766274222419,0.02461741,88347.0,88334.0,0.02832]
[1766274222620,0.02461741,88346.0,88334.0,0.02832]
[1766274222820,0.02461741,88345.0,88334.0,0.02832]
[1766274223020,0.17573803,88350.0,88334.0,0.02832]
[1766274223221,0.02461746,88349.0,88334.0,0.02832]
[1766274223422,0.02461746,88348.0,88334.0,0.02832]
[1766274223622,0.02461746,88347.0,88334.0,0.02832]
[1766274223823,0.02461746,88346.0,88334.0,0.02832]
[1766274224024,0.02461746,88345.0,88334.0,0.02832]
[1766274224222,0.17573803,88350.0,88334.0,0.02832]
[1766274224423,0.02461742,88349.0,88334.0,0.02832]
[1766274224727,0.17573803,88350.0,88334.0,0.02832]
[1766274224728,0.02461742,88348.0,88334.0,0.02832]
[1766274225027,0.02461742,88347.0,88334.0,0.02832]
[1766274225227,0.02461742,88346.0,88334.0,0.02832]
[1766274225524,0.02461742,88345.0,88334.0,0.02832]
[1766274225727,0.0113238,88349.0,88334.0,0.02832]
[1766274225928,0.02460902,88348.0,88334.0,0.02832]
[1766274226231,0.02460902,88347.0,88334.0,0.02832]
[1766274226430,0.02460902,88346.0,88334.0,0.02832]
[1766274226729,0.02460902,88345.0,88334.0,0.02832]
[1766274226929,0.0113238,88349.0,88334.0,0.02832]
[1766274227130,0.0113241,88347.0,88334.0,0.02832]
[1766274227322,0.02460894,88346.0,88334.0,0.02832]
[1766274227522,0.02460894,88345.0,88334.0,0.02832]
[1766274227722,0.0113241,88347.0,88334.0,0.02832]
[1766274227924,0.02460892,88346.0,88334.0,0.02832]
[1766274228126,0.02460892,88345.0,88334.0,0.02832]
[1766274228328,0.0113241,88347.0,88334.0,0.02832]
[1766274228625,0.02460893,88346.0,88334.0,0.02832]
[1766274228827,0.0113241,88347.0,88334.0,0.02832]
[1766274229128,0.02460895,88346.0,88334.0,0.02832]
[1766274229327,0.0113241,88347.0,88334.0,0.02832]
[1766274229527,0.02460888,88346.0,88334.0,0.02832]
[1766274229827,0.0113241,88347.0,88334.0,0.02832]
[1766274230027,0.02460888,88346.0,88334.0,0.02832]
[1766274230326,0.0113241,88347.0,88334.0,0.02832]
[1766274230527,0.02460882,88346.0,88334.0,0.02832]
[1766274230722,0.0113241,88347.0,88334.0,0.02832]
[1766274231027,0.0246088,88346.0,88334.0,0.02832]
[1766274231226,0.0113241,88347.0,88334.0,0.02832]
[1766274231424,0.02460876,88346.0,88334.0,0.02832]
[1766274231626,0.0113241,88347.0,88334.0,0.02832]
[1766274231828,0.02460876,88346.0,88334.0,0.02832]
[1766274232028,0.0113241,88347.0,88334.0,0.02832]
[1766274232332,0.02460876,88346.0,88334.0,0.02832]
[1766274232534,0.0113241,88347.0,88334.0,0.02832]
[1766274232733,0.02460875,88346.0,88334.0,0.02832]
[1766274232934,0.0113241,88347.0,88334.0,0.02832]
[1766274233141,0.02460872,88346.0,88334.0,0.02832]
[1766274233333,0.0113241,88347.0,88334.0,0.02832]
[1766274233537,0.02460868,88346.0,88334.0,0.02832]
[1766274233739,0.0113241,88347.0,88334.0,0.02832]
[1766274233938,0.02460868,88346.0,88334.0,0.02832]
[1766274234139,0.0113241,88347.0,88334.0,0.02832]
[1766274234336,0.02460865,88346.0,88334.0,0.02832]
[1766274234536,0.00016982,88350.0,88334.0,0.02832]
[1766274234736,0.02460865,88349.0,88334.0,0.02832]
[1766274234936,0.02460865,88348.0,88334.0,0.02832]
[1766274235137,0.02460865,88347.0,88334.0,0.02832]
[1766274235325,0.02460865,88346.0,88334.0,0.02832]
[1766274235529,0.00016982,88350.0,88334.0,0.02832]
[1766274235730,0.02460862,88349.0,88334.0,0.02832]
[1766274235938,0.02460862,88348.0,88334.0,0.02832]
[1766274236140,0.02460862,88347.0,88334.0,0.02832]
[1766274236340,0.02460862,88346.0,88334.0,0.02832]
[1766274236541,0.00016982,88350.0,88334.0,0.02832]
[1766274236742,0.02460849,88349.0,88334.0,0.02832]
[1766274236932,0.02460849,88348.0,88334.0,0.02832]
[1766274237133,0.02460849,88347.0,88334.0,0.02832]
[1766274237334,0.02460849,88346.0,88334.0,0.02832]
[1766274237542,0.00016982,88350.0,88334.0,0.02832]
[1766274237737,0.02460106,88349.0,88334.0,0.02832]
[1766274237938,0.02460106,88348.0,88334.0,0.02832]
[1766274238138,0.02460106,88347.0,88334.0,0.02832]
[1766274238339,0.02460106,88346.0,88334.0,0.02832]
[1766274238541,0.00016982,88350.0,88334.0,0.02832]
[1766274238842,0.02460111,88349.0,88334.0,0.02832]
[1766274239041,0.02460111,88348.0,88334.0,0.02832]
[1766274239241,0.02460111,88347.0,88334.0,0.02832]
[1766274239441,0.02460111,88346.0,88334.0,0.02832]
[1766274239646,0.0113238,88349.0,88334.0,0.02832]
[1766274239850,0.02460104,88348.0,88334.0,0.02832]
[1766274240048,0.02460104,88347.0,88334.0,0.02832]
[1766274240343,0.02460104,88346.0,88334.0,0.02832]
[1766274240655,0.0113238,88349.0,88334.0,0.02832]
[1766274240848,0.02460128,88348.0,88334.0,0.02832]
[1766274241048,0.02460128,88347.0,88334.0,0.02832]
[1766274241251,0.02460128,88346.0,88334.0,0.02832]
[1766274241447,0.0113238,88349.0,88334.0,0.02832]
[1766274241651,0.02460172,88348.0,88334.0,0.02832]
[1766274241854,0.02460172,88347.0,88334.0,0.02832]
[1766274242050,0.02460172,88346.0,88334.0,0.02832]
[1766274242350,0.0113238,88349.0,88334.0,0.02832]
[1766274242550,0.02460173,88348.0,88334.0,0.02832]
[1766274242745,0.02460173,88347.0,88334.0,0.02832]
[1766274242947,0.02460173,88346.0,88334.0,0.02832]
[1766274243143,0.0113238,88349.0,88334.0,0.02832]
[1766274243349,0.02460277,88348.0,88334.0,0.02832]
[1766274243650,0.02460277,88347.0,88334.0,0.02832]
[1766274243851,0.02460277,88346.0,88334.0,0.02832]
[1766274244156,0.0113238,88349.0,88334.0,0.02832]
[1766274244453,0.02459514,88348.0,88334.0,0.02832]
[1766274244654,0.02459514,88347.0,88334.0,0.02832]
[1766274244848,0.02459514,88346.0,88334.0,0.02832]
[1766274245149,0.0113238,88349.0,88334.0,0.02832]
[1766274245349,0.02459513,88348.0,88334.0,0.02832]
[1766274245547,0.02459513,88347.0,88334.0,0.02832]
[1766274245748,0.02459513,88346.0,88334.0,0.02832]
[1766274246049,0.0113238,88349.0,88334.0,0.02832]
[1766274246244,0.02460821,88348.0,88334.0,0.02832]
[1766274246439,0.02460821,88347.0,88334.0,0.02832]
[1766274246645,0.02460821,88346.0,88334.0,0.02832]
[1766274246851,0.0113238,88349.0,88334.0,0.02832]
[1766274247053,0.02460946,88348.0,88334.0,0.02832]
[1766274247351,0.02460946,88347.0,88334.0,0.02832]
[1766274247651,0.02460946,88346.0,88334.0,0.02832]
[1766274247854,0.02461074,88345.0,88334.0,0.02832]
[1766274248042,0.0113238,88349.0,88334.0,0.02832]
[1766274248244,0.02461456,88348.0,88334.0,0.02832]
[1766274248444,0.02461456,88347.0,88334.0,0.02832]
[1766274248641,0.02461456,88346.0,88334.0,0.02832]
[1766274248952,0.02461456,88345.0,88334.0,0.02832]
[1766274249154,0.0113238,88349.0,88334.0,0.02832]
[1766274249356,0.02461453,88348.0,88334.0,0.02832]
[1766274249551,0.02461453,88347.0,88334.0,0.02832]
[1766274249752,0.02461453,88346.0,88334.0,0.02832]
[1766274249952,0.02461453,88345.0,88334.0,0.02832]
[1766274250147,0.0113238,88349.0,88334.0,0.02832]
[1766274250348,0.02461446,88348.0,88334.0,0.02832]
[1766274250652,0.02461446,88347.0,88334.0,0.02832]
[1766274250861,0.02461446,88346.0,88334.0,0.02832]
[1766274251155,0.02461446,88345.0,88334.0,0.02832]
[1766274251356,0.0113238,88349.0,88334.0,0.02832]
[1766274251556,0.02461451,88348.0,88334.0,0.02832]
[1766274251754,0.02461451,88347.0,88334.0,0.02832]
[1766274251965,0.02461451,88346.0,88334.0,0.02832]
[1766274252256,0.02461451,88345.0,88334.0,0.02832]
[1766274252456,0.0113241,88347.0,88334.0,0.02832]
[1766274252650,0.02461459,88346.0,88334.0,0.02832]
[1766274252853,0.02461459,88345.0,88334.0,0.02832]
[1766274253055,0.0113241,88347.0,88334.0,0.02832]
[1766274253256,0.0246146,88346.0,88334.0,0.02832]
[1766274253458,0.0246146,88345.0,88334.0,0.02832]
[1766274253758,0.0113241,88347.0,88334.0,0.02832]
[1766274253958,0.02461459,88346.0,88334.0,0.02832]
[1766274254160,0.02461459,88345.0,88334.0,0.02832]
[1766274254350,0.0113241,88347.0,88334.0,0.02832]
[1766274254554,0.02461457,88346.0,88334.0,0.02832]
[1766274254751,0.02461457,88345.0,88334.0,0.02832]
[1766274254952,0.0113241,88347.0,88334.0,0.02832]
[1766274255152,0.02461457,88346.0,88334.0,0.02832]
[1766274255453,0.02461457,88345.0,88334.0,0.02832]
[1766274255660,0.0113241,88347.0,88334.0,0.02832]
[1766274255853,0.02461654,88346.0,88334.0,0.02832]
[1766274256060,0.02461654,88345.0,88334.0,0.02832]
[1766274256363,0.0113241,88347.0,88334.0,0.02832]
[1766274256563,0.02461654,88346.0,88334.0,0.02832]
[1766274256860,0.02461654,88345.0,88334.0,0.02832]
[1766274257163,0.0113241,88347.0,88334.0,0.02832]
[1766274257347,0.02461652,88346.0,88334.0,0.02832]
[1766274257547,0.02461652,88345.0,88334.0,0.02832]
[1766274257762,0.0113241,88347.0,88334.0,0.02832]
[1766274258062,0.02461649,88346.0,88334.0,0.02832]
[1766274258249,0.02461649,88345.0,88334.0,0.02832]
[1766274258453,0.0113241,88347.0,88334.0,0.02832]
[1766274258662,0.02461646,88346.0,88334.0,0.02832]
[1766274258961,0.02461646,88345.0,88334.0,0.02832]
[1766274259156,0.0113241,88347.0,88334.0,0.02832]
[1766274259352,0.02461644,88346.0,88334.0,0.02832]
[1766274259552,0.02461644,88345.0,88334.0,0.02832]
[1766274259754,0.0113241,88347.0,88334.0,0.02832]
[1766274259954,0.02461648,88346.0,88334.0,0.02832]
[1766274260161,0.02461648,88345.0,88334.0,0.02832]
[1766274260364,0.0113241,88347.0,88334.0,0.02832]
[1766274260558,0.02461636,88346.0,88334.0,0.02832]
[1766274260758,0.02461636,88345.0,88334.0,0.02832]
[1766274261058,0.0113241,88347.0,88334.0,0.02832]
[1766274261256,0.02461608,88346.0,88334.0,0.02832]
[1766274261456,0.02461608,88345.0,88334.0,0.02832]
[1766274261651,0.0113241,88347.0,88334.0,0.02832]
[1766274261856,0.02461595,88346.0,88334.0,0.02832]
[1766274262056,0.0113241,88347.0,88334.0,0.02832]
[1766274262057,0.02461595,88345.0,88334.0,0.02832]
[1766274262258,0.0113241,88347.0,88334.0,0.02832]
[1766274262451,0.02461621,88346.0,88334.0,0.02832]
[1766274262655,0.02461621,88345.0,88334.0,0.02832]
[1766274262856,0.0113241,88347.0,88334.0,0.02832]
[1766274263151,0.02461601,88346.0,88334.0,0.02832]
[1766274263364,0.02461571,88345.0,88334.0,0.02832]
[1766274263664,0.0113241,88347.0,88334.0,0.02832]
[1766274263858,0.02461597,88346.0,88334.0,0.02832]
[1766274264057,0.02461597,88345.0,88334.0,0.02832]
[1766274264257,0.00016982,88350.0,88334.0,0.02832]
[1766274264462,0.02461596,88349.0,88334.0,0.02832]
[1766274264664,0.02461596,88348.0,88334.0,0.02832]
[1766274264860,0.02461596,88347.0,88334.0,0.02832]
[1766274265059,0.02461596,88346.0,88334.0,0.02832]
[1766274265361,0.02461596,88345.0,88334.0,0.02832]
[1766274265561,0.0113239,88349.0,88334.0,0.02832]
[1766274265860,0.02461596,88348.0,88334.0,0.02832]
[1766274266061,0.02461596,88347.0,88334.0,0.02832]
[1766274266362,0.02461596,88346.0,88334.0,0.02832]
[1766274266556,0.02461596,88345.0,88334.0,0.02832]
[1766274266765,0.0113239,88349.0,88334.0,0.02832]
[1766274267064,0.02462021,88348.0,88334.0,0.02832]
[1766274267264,0.02462021,88347.0,88334.0,0.02832]
[1766274267466,0.02462021,88346.0,88334.0,0.02832]
[1766274267660,0.0113239,88349.0,88334.0,0.02832]
[1766274267661,0.02462021,88345.0,88334.0,0.02832]
[1766274267861,0.0113239,88349.0,88334.0,0.02832]
[1766274268066,0.02462026,88348.0,88334.0,0.02832]
[1766274268366,0.02462026,88347.0,88334.0,0.02832]
[1766274268566,0.02462026,88346.0,88334.0,0.02832]
[1766274268865,0.02462026,88345.0,88334.0,0.02832]
[1766274269068,0.0113239,88349.0,88334.0,0.02832]
[1766274269257,0.02462025,88348.0,88334.0,0.02832]
[1766274269458,0.02462025,88347.0,88334.0,0.02832]
[1766274269657,0.16292027,88375.0,88335.0,0.11319708]
[1766274269855,0.17557131,88400.0,88360.0,0.17557131]
[1766274270060,0.17557131,88390.0,88361.0,0.06905295]
[1766274270264,0.0113194,88384.0,88361.0,0.06905295]
[1766274270468,0.0113194,88384.0,88361.0,0.02832]
[1766274270672,0.17557131,88380.0,88364.0,0.00016972]
[1766274272170,0.0113196,88382.0,88364.0,0.00016972]
[1766274272871,0.17557131,88380.0,88364.0,0.00016972]
[1766274277369,0.01132,88379.0,88364.0,0.00016972]
[1766274277774,0.01132,88379.0,88364.0,0.00012972]
[1766274281773,0.02832,88378.0,88364.0,0.00012972]
[1766274287081,0.0113202,88377.0,88364.0,0.00012972]
[1766274290386,0.02832,88378.0,88364.0,0.00012972]
[1766274294182,0.02832,88378.0,88360.0,0.02832]
[1766274294387,0.02832,88378.0,88351.0,0.04073295]
[1766274294685,0.0113207,88373.0,88352.0,0.02124]
[1766274294888,0.02832,88372.0,88352.0,0.02124]
[1766274295183,0.02832,88372.0,88353.0,0.00016972]
[1766274295184,0.00016938,88371.0,88353.0,0.00016972]
[1766274295386,0.17550134,88370.0,88353.0,0.00016972]
[1766274298384,0.17550134,88370.0,88353.0,0.04090267]
[1766274299589,0.17550134,88370.0,88356.0,0.04073295]
[1766274300088,0.17550134,88370.0,88355.0,0.04073295]
[1766274300289,0.00016938,88371.0,88357.0,0.0113227]
[1766274300692,0.00016938,88371.0,88360.0,0.17550134]
[1766274301490,0.00012938,88371.0,88357.0,0.0113227]
[1766274301692,0.00012938,88371.0,88360.0,0.17550134]
[1766274301892,0.00012938,88371.0,88357.0,0.0113227]
[1766274303482,0.00012938,88371.0,88360.0,0.17550134]
[1766274303885,0.00012938,88371.0,88357.0,0.0113227]
[1766274304492,0.00012938,88371.0,88353.0,0.05222587]
[1766274304994,0.00012938,88371.0,88353.0,0.05222597]
[1766274307390,0.00012938,88371.0,88353.0,0.04090267]
[1766274308300,0.00012938,88371.0,88360.0,0.17550134]
[1766274308596,0.00012938,88371.0,88353.0,0.04090267]
[1766274309400,0.00012938,88371.0,88354.0,0.0113231]
[1766274309593,0.00012938,88371.0,88354.0,0.04073295]
[1766274309801,0.00012938,88371.0,88357.0,0.0113227]
[1766274313599,0.0113201,88378.0,88357.0,0.0113227]
[1766274313900,0.02832,88375.0,88360.0,0.17550134]
[1766274317891,0.02832,88375.0,88360.0,0.18682374]
[1766274318300,0.0113197,88382.0,88360.0,0.18682374]
[1766274318600,0.17550134,88380.0,88360.0,0.18682374]
[1766274319200,0.01132,88379.0,88360.0,0.17550134]
[1766274325405,0.0113204,88376.0,88360.0,0.17550134]
[1766274325707,0.0113204,88376.0,88360.0,0.17546376]
[1766274326606,0.18678366,88380.0,88360.0,0.17546376]
[1766274327200,0.17546376,88380.0,88360.0,0.17546376]
[1766274327400,0.02832,88381.0,88360.0,0.18678616]
[1766274327704,0.17546376,88380.0,88360.0,0.17546376]
[1766274327908,0.02832,88384.0,88362.0,0.0113221]
[1766274328408,0.0113195,88383.0,88361.0,0.00016972]
[1766274330309,0.02832,88384.0,88364.0,0.0113218]
[1766274330508,0.0113196,88383.0,88365.0,0.02832]
[1766274335309,0.02832,88384.0,88365.0,0.02832]
[1766274335508,0.0396394,88384.0,88365.0,0.02832]
[1766274337411,0.0113188,88388.0,88370.0,0.17546376]
[1766274341016,0.0113188,88388.0,88371.0,0.02832]
[1766274341707,0.0396382,88393.0,88371.0,0.0396409]
[1766274343113,0.02832,88393.0,88371.0,0.02832]
[1766274344423,0.02832,88393.0,88373.0,0.0113207]
[1766274345820,0.02832,88393.0,88372.0,0.0113208]
[1766274348423,0.02832,88393.0,88375.0,0.0113203]
[1766274348622,0.02832,88393.0,88376.0,0.02832]
[1766274351626,0.02832,88393.0,88380.0,0.17546376]
[1766274353523,0.0113164,88408.0,88384.0,0.0113192]
[1766274353823,0.0113165,88406.0,88387.0,0.00016972]
[1766274355430,0.0113165,88406.0,88394.0,0.0003]
[1766274355928,0.0113165,88406.0,88387.0,0.00016972]
[1766274361937,0.02832,88407.0,88387.0,0.00016972]
[1766274362227,0.011317,88402.0,88387.0,0.00016972]
[1766274363332,0.011317,88403.0,88387.0,0.00016972]
[1766274364431,0.02832,88407.0,88387.0,0.00016972]
[1766274365324,0.0113172,88401.0,88387.0,0.00016972]
[1766274366833,0.02832,88407.0,88387.0,0.00016972]
[1766274367031,0.0113175,88398.0,88387.0,0.00016972]
[1766274367232,0.0396375,88398.0,88387.0,0.00016972]
[1766274369236,0.0113179,88395.0,88385.0,0.02832]
[1766274369424,0.0113179,88395.0,88385.0,0.01832]
[1766274369719,0.0113179,88395.0,88385.0,0.00832]
[1766274371029,0.02832,88398.0,88385.0,0.00832]
[1766274371726,0.0113177,88397.0,88385.0,0.00832]
[1766274377634,0.02832,88398.0,88382.0,0.03047722]
[1766274377836,0.02832,88398.0,88380.0,0.02064694]
[1766274378339,0.02832,88398.0,88378.0,0.02832]
[1766274378939,0.02832,88398.0,88379.0,0.00016972]
[1766274381034,0.0113187,88389.0,88379.0,0.00016972]
[1766274383940,0.02832,88398.0,88379.0,0.00016972]
[1766274384445,0.0113191,88386.0,88375.0,0.0126]
[1766274384743,0.0113191,88386.0,88375.0,0.02832]
[1766274387547,0.17536011,88390.0,88372.0,0.00016972]
[1766274388232,0.17536011,88390.0,88372.0,0.04090267]
[1766274388450,0.02832,88398.0,88372.0,0.04090267]
[1766274389246,0.0113194,88384.0,88372.0,0.04090267]
[1766274390451,0.0113187,88390.0,88372.0,0.04090267]
[1766274391359,0.011319,88387.0,88372.0,0.00016972]
[1766274393963,0.0113193,88384.0,88372.0,0.00016972]
[1766274397472,0.0197988,88389.0,88372.0,0.00016972]
[1766274397866,0.02398191,88388.0,88372.0,0.00016972]
[1766274398170,0.0197988,88389.0,88372.0,0.00016972]
[1766274398370,0.02398198,88388.0,88372.0,0.00016972]
[1766274398668,0.0197988,88389.0,88372.0,0.00016972]
[1766274398864,0.0113191,88386.0,88367.0,0.02804]
[1766274399769,0.0113191,88386.0,88368.0,0.00016972]
[1766274400765,0.00848,88389.0,88368.0,0.00016972]
[1766274400972,0.02398139,88388.0,88368.0,0.00016972]
[1766274401173,0.02398139,88387.0,88368.0,0.00016972]
[1766274401374,0.00848,88389.0,88368.0,0.00016972]
[1766274401561,0.02398153,88388.0,88368.0,0.00016972]
[1766274401871,0.0113191,88386.0,88368.0,0.00016972]
[1766274402976,0.00848,88389.0,88368.0,0.00016972]
[1766274403166,0.02398212,88388.0,88368.0,0.00016972]
[1766274403475,0.02398212,88387.0,88368.0,0.00016972]
[1766274403677,0.00848,88389.0,88368.0,0.00016972]
[1766274403968,0.0113189,88387.0,88368.0,0.00016972]
[1766274405373,0.0113193,88384.0,88368.0,0.00016972]
[1766274408780,0.0113189,88388.0,88368.0,0.00016972]
[1766274408967,0.02398825,88387.0,88368.0,0.00016972]
[1766274409169,0.02398825,88387.0,88367.0,0.02804]
[1766274409170,0.0113196,88382.0,88367.0,0.02804]
[1766274410179,0.0113191,88386.0,88367.0,0.02804]
[1766274410374,0.02398901,88385.0,88367.0,0.02804]
[1766274410580,0.0113191,88386.0,88367.0,0.02804]
[1766274410768,0.02398944,88385.0,88367.0,0.02804]
[1766274411078,0.0113191,88386.0,88367.0,0.02804]
[1766274411379,0.02398946,88385.0,88367.0,0.02804]
[1766274411577,0.0113191,88386.0,88367.0,0.02804]
[1766274411778,0.02399011,88385.0,88367.0,0.02804]
[1766274411979,0.0113191,88386.0,88367.0,0.02804]
[1766274412284,0.0113194,88384.0,88367.0,0.02804]
[1766274416582,0.17544295,88380.0,88367.0,0.02804]
[1766274416884,0.0113194,88384.0,88367.0,0.02804]
[1766274417381,0.1754653,88380.0,88367.0,0.02804]
[1766274419084,0.2037853,88380.0,88367.0,0.02804]
[1766274423291,0.2037853,88380.0,88366.0,0.00016972]
[1766274425688,0.02832,88380.0,88366.0,0.00016972]
[1766274425888,0.2037853,88380.0,88366.0,0.00016972]
[1766274432289,0.2037853,88380.0,88366.0,0.04087601]
[1766274432494,0.2037853,88380.0,88366.0,0.00016972]
[1766274436896,0.20378701,88380.0,88366.0,0.00016972]
[1766274442600,0.20378701,88380.0,88367.0,0.0113215]
[1766274449406,0.20378701,88380.0,88366.0,0.00016972]
[1766274452504,0.02832,88380.0,88366.0,0.00016972]
[1766274452801,0.20378701,88380.0,88366.0,0.00016972]
[1766274453208,0.01132,88379.0,88366.0,0.00016972]
[1766274456608,0.20378701,88380.0,88366.0,0.00016972]
[1766274459810,0.02832,88380.0,88366.0,0.00016972]
[1766274462298,0.02832,88380.0,88367.0,0.0113215]
[1766274462502,0.20378701,88380.0,88367.0,0.0113215]
[1766274463917,0.20378701,88380.0,88370.0,0.0113211]
[1766274466716,0.20378701,88380.0,88366.0,0.01149132]
[1766274469614,0.20378701,88380.0,88366.0,0.00016972]
[1766274469817,0.0113203,88376.0,88366.0,0.00016972]
[1766274470116,0.0396403,88376.0,88363.0,0.03070629]
[1766274470413,0.0396403,88376.0,88359.0,0.02832]
[1766274471018,0.0396403,88376.0,88359.0,0.02843314]
[1766274473721,0.0396403,88376.0,88360.0,0.17546827]
[1766274474617,0.0396403,88376.0,88359.0,0.02843314]
[1766274484430,0.02832,88376.0,88359.0,0.02843314]
[1766274486833,0.02832,88376.0,88359.0,0.03975564]
[1766274491537,0.02832,88376.0,88362.0,0.0113221]
[1766274491940,0.02832,88376.0,88359.0,0.02843314]
[1766274492941,0.02832,88376.0,88363.0,0.011322]
[1766274494244,0.01544,88379.0,88359.0,0.02843314]
[1766274494634,0.01544,88379.0,88369.0,0.0113212]
[1766274498745,0.01544,88379.0,88365.0,0.0113217]
[1766274504253,0.01544,88379.0,88362.0,0.04072753]
[1766274510563,0.01544,88379.0,88363.0,0.011322]
[1766274510956,0.01544,88379.0,88363.0,0.05204953]
[1766274511759,0.00016972,88380.0,88363.0,0.05204953]
[1766274516268,0.00016972,88380.0,88363.0,0.04072753]
[1766274517868,0.00016972,88380.0,88363.0,0.05204943]
[1766274518770,0.00016972,88380.0,88363.0,0.04072753]
[1766274527682,0.00016972,88380.0,88364.0,0.04072753]
[1766274533485,0.00016972,88380.0,88363.0,0.04072753]
[1766274534186,0.00016972,88380.0,88364.0,0.04072753]
[1766274534373,0.00016972,88380.0,88363.0,0.04072753]
[1766274535488,0.00016972,88380.0,88364.0,0.0113218]
[1766274539592,0.00016972,88380.0,88362.0,0.04072753]
[1766274543487,0.00016972,88380.0,88363.0,0.011322]
[1766274543694,0.00912,88388.0,88363.0,0.011322]
[1766274543895,0.00912,88388.0,88363.0,0.05204953]
[1766274544696,0.0113182,88393.0,88372.0,0.0113208]
[1766274544890,0.02832,88392.0,88372.0,0.0113208]
[1766274545397,0.17539761,88390.0,88372.0,0.0113208]
[1766274545894,0.00016972,88390.0,88372.0,0.01149052]
[1766274546385,0.00016972,88390.0,88372.0,0.00016972]
[1766274547489,0.17556733,88390.0,88372.0,0.00016972]
[1766274550006,0.00016972,88390.0,88372.0,0.00016972]
[1766274550201,0.17556733,88390.0,88372.0,0.00016972]
[1766274551209,0.00016972,88390.0,88372.0,0.00016972]
[1766274551404,0.00016972,88390.0,88372.0,0.01149042]
[1766274552310,0.00016972,88390.0,88375.0,0.0113203]
[1766274552510,0.02832,88392.0,88375.0,0.0113203]
[1766274553503,0.02848972,88392.0,88375.0,0.0113203]
[1766274554204,0.02848972,88392.0,88378.0,0.01132]
[1766274554404,0.02848972,88392.0,88372.0,0.00016972]
[1766274554704,0.02848972,88392.0,88373.0,0.0113206]
[1766274555908,0.0113184,88391.0,88372.0,0.00016972]
[1766274556107,0.02848972,88392.0,88373.0,0.0113206]
[1766274556313,0.17539761,88390.0,88373.0,0.0113206]
[1766274556913,0.17539761,88390.0,88372.0,0.00016972]
[1766274557409,0.02848972,88392.0,88372.0,0.00016972]
[1766274558211,0.02848972,88392.0,88376.0,0.0113203]
[1766274566015,0.02848972,88392.0,88372.0,0.01149052]
[1766274568319,0.02848972,88392.0,88375.0,0.0113204]
[1766274576419,0.02848972,88392.0,88372.0,0.00016972]
[1766274577016,0.02848972,88392.0,88374.0,0.0113206]
[1766274586132,0.02848972,88392.0,88372.0,0.00016972]
[1766274586631,0.17540103,88390.0,88372.0,0.00016972]
[1766274590440,0.17540103,88390.0,88373.0,0.0113206]
[1766274591030,0.0113201,88378.0,88362.0,0.07204788]
[1766274591234,0.17540103,88372.0,88359.0,0.02832]
[1766274591438,0.17540103,88370.0,88359.0,0.02832]
[1766274591632,0.0113206,88375.0,88359.0,0.02832]
[1766274592135,0.0113209,88372.0,88359.0,0.02832]
[1766274593337,0.01149012,88376.0,88359.0,0.02832]
[1766274593543,0.0113208,88373.0,88359.0,0.02832]
[1766274596943,0.17540103,88370.0,88359.0,0.02832]
[1766274597345,0.00016972,88376.0,88359.0,0.02832]
[1766274598841,0.0113209,88372.0,88359.0,0.02832]
[1766274603951,0.01149012,88376.0,88359.0,0.02832]
[1766274606150,0.00016972,88376.0,88359.0,0.02832]
[1766274610949,0.0113206,88375.0,88359.0,0.02832]
[1766274613356,0.00016972,88376.0,88359.0,0.02832]
[1766274614053,0.01149022,88376.0,88359.0,0.02832]
[1766274616265,0.00016972,88376.0,88359.0,0.02832]
[1766274617267,0.00016972,88376.0,88360.0,0.0113223]
[1766274617467,0.0113189,88388.0,88360.0,0.17548464]
[1766274617664,0.02401931,88387.0,88370.0,0.17548464]
[1766274617966,0.0113182,88393.0,88370.0,0.0113211]
[1766274618463,0.0113182,88393.0,88373.0,0.00016972]
[1766274618763,0.00016972,88390.0,88373.0,0.00016972]
[1766274619166,0.01148832,88390.0,88373.0,0.00016972]
[1766274622271,0.00016972,88390.0,88373.0,0.00016972]
[1766274629675,0.02404608,88389.0,88373.0,0.00016972]
[1766274629868,0.02404608,88388.0,88373.0,0.00016972]
[1766274630070,0.02404608,88387.0,88373.0,0.00016972]
[1766274630278,0.00016972,88390.0,88373.0,0.00016972]
[1766274630469,0.02404575,88389.0,88373.0,0.00016972]
[1766274630671,0.02404575,88388.0,88373.0,0.00016972]
[1766274630870,0.00016972,88390.0,88373.0,0.00016972]
[1766274630871,0.02404575,88387.0,88373.0,0.00016972]
[1766274631072,0.00016972,88390.0,88373.0,0.00016972]
[1766274631273,0.02404534,88389.0,88373.0,0.00016972]
[1766274631472,0.02404534,88388.0,88373.0,0.00016972]
[1766274631672,0.00016972,88390.0,88373.0,0.00016972]
[1766274631873,0.02404534,88389.0,88373.0,0.00016972]
[1766274632182,0.02404534,88388.0,88373.0,0.00016972]
[1766274632382,0.00016972,88390.0,88373.0,0.00016972]
[1766274632682,0.02404517,88389.0,88373.0,0.00016972]
[1766274632887,0.02404517,88388.0,88373.0,0.00016972]
[1766274633079,0.0113187,88389.0,88373.0,0.00016972]
[1766274633280,0.02404501,88388.0,88373.0,0.00016972]
[1766274633582,0.0113187,88389.0,88373.0,0.00016972]
[1766274633784,0.02404517,88388.0,88373.0,0.00016972]
[1766274634082,0.0113187,88389.0,88373.0,0.00016972]
[1766274634284,0.02404539,88388.0,88373.0,0.00016972]
[1766274634478,0.0113187,88389.0,88373.0,0.00016972]
[1766274634673,0.02402928,88388.0,88373.0,0.00016972]
[1766274634873,0.0113187,88389.0,88373.0,0.00016972]
[1766274635074,0.0240293,88388.0,88373.0,0.00016972]
[1766274635380,0.0240293,88387.0,88373.0,0.00016972]
[1766274635578,0.00016972,88390.0,88373.0,0.00016972]
[1766274635878,0.02402973,88389.0,88373.0,0.00016972]
[1766274636182,0.02402973,88388.0,88373.0,0.00016972]
[1766274636384,0.02402973,88387.0,88373.0,0.00016972]
[1766274636585,0.00016972,88390.0,88373.0,0.00016972]
[1766274636784,0.02403026,88389.0,88373.0,0.00016972]
[1766274636987,0.02403026,88388.0,88373.0,0.00016972]
[1766274637283,0.02403026,88387.0,88373.0,0.00016972]
[1766274637485,0.00016972,88390.0,88373.0,0.00016972]
[1766274637680,0.0240311,88389.0,88373.0,0.00016972]
[1766274637880,0.0240311,88388.0,88373.0,0.00016972]
[1766274638082,0.0240311,88387.0,88373.0,0.00016972]
[1766274638281,0.00016972,88390.0,88373.0,0.00016972]
[1766274638476,0.02403216,88389.0,88373.0,0.00016972]